bitfinex/quotes_ETHUSD_20251023
["timestamp","ask_amount","ask_price","bid_price","bid_amount"]
[1761234803117,2.57640796,3881.4,3880.4,0.4294]
[1761234803317,2.57640796,3881.4,3880.4,3.0063966]
[1761234803534,0.1288,3881.3,3880.8,0.1288]
[1761234803731,0.1288,3881.3,3880.9,2.57671304]
[1761234803935,0.1288,3881.3,3880.9,3.00611304]
[1761234804237,0.1569,3881.7,3881.0,0.02576655]
[1761234804459,0.1288,3881.4,3881.0,2.57658929]
[1761234804644,0.1288,3881.4,3880.9,3.00611667]
[1761234804807,0.1288,3881.4,3880.8,0.1288]
[1761234805211,2.57647439,3881.3,3880.8,0.1288]
[1761234805406,2.7051979,3881.4,3880.8,0.1288]
[1761234805834,2.57657847,3881.2,3880.6,3.348]
[1761234806032,0.1288,3880.9,3880.4,0.1288]
[1761234806831,0.1288,3880.9,3880.5,1.5552]
[1761234807235,0.1288,3880.9,3880.4,0.1288]
[1761234808027,2.57574715,3882.4,3880.6,0.50688]
[1761234808233,0.1288,3882.1,3881.5,0.1288]
[1761234808549,0.128,3882.1,3881.6,2.57620933]
[1761234809056,0.128,3882.1,3881.5,1.684]
[1761234809257,0.128,3882.1,3881.5,2.70510837]
[1761234809481,0.128,3882.1,3881.7,2.57613757]
[1761234809661,0.1596,3882.5,3881.5,2.70510837]
[1761234809662,0.1288,3882.3,3881.8,2.70490501]
[1761234810358,0.1288,3882.3,3881.9,0.02576058]
[1761234811338,0.1288,3882.3,3881.8,0.1288]
[1761234811542,2.70459663,3882.3,3881.8,0.1288]
[1761234811977,0.1288,3882.3,3881.8,0.1288]
[1761234812275,3.345,3882.7,3881.5,0.65023084]
[1761234812568,0.1288,3882.3,3881.8,2.70487866]
[1761234812774,0.1668,3883.4,3882.3,2.57578139]
[1761234813070,0.1288,3882.7,3882.4,0.24015726]
[1761234813499,2.57527525,3883.1,3882.4,3.24227185]
[1761234813800,0.1288,3883.0,3882.4,0.7954]
[1761234814208,0.1288,3883.0,3882.4,3.3711035]
[1761234814517,0.1288,3883.0,3882.4,0.7954]
[1761234814667,2.57513596,3883.3,3882.4,0.2144]
[1761234814859,0.1288,3883.2,3882.7,0.1288]
[1761234815185,2.57599884,3883.5,3882.7,0.1288]
[1761234815186,0.001,3883.5,3882.7,0.1288]
[1761234815360,0.001,3883.5,3883.4,0.1288]
[1761234816095,0.001,3883.5,3883.4,5.3811878]
[1761234817495,1.6249,3885.8,3883.6,3.08181047]
[1761234817670,0.1662,3885.4,3883.6,5.08921047]
[1761234818091,0.9115,3885.7,3883.6,5.08921047]
[1761234818092,0.8125,3885.7,3883.6,5.6114034]
[1761234818405,0.69478273,3887.4,3883.6,5.6114034]
[1761234818406,0.69478273,3887.7,3886.2,0.50688]
[1761234818612,0.1591,3887.6,3886.2,0.481]
[1761234818765,1.43663688,3888.1,3885.7,0.2144]
[1761234818964,2.57208261,3887.9,3885.8,3.08031812]
[1761234819161,2.57254034,3887.3,3885.9,0.4522]
[1761234819408,0.1597,3888.4,3886.1,0.50688]
[1761234819570,2.695,3888.1,3885.7,0.2144]
[1761234819899,2.57208261,3887.9,3885.0,0.2144]
[1761234820200,1.5552,3887.8,3885.1,0.50688]
[1761234820373,1.5552,3887.8,3885.1,0.4522]
[1761234820374,1.5552,3887.1,3885.1,0.4522]
[1761234820564,2.57340686,3885.9,3885.0,0.2144]
[1761234820796,2.57337195,3886.0,3885.0,0.2144]
[1761234820990,2.512,3886.2,3884.8,1.5552]
[1761234821319,2.57374372,3885.4,3884.3,2.06208]
[1761234821536,2.57354769,3885.7,3884.4,2.57436804]
[1761234821711,0.1117,3886.1,3884.5,0.50688]
[1761234821887,3.39,3886.0,3884.7,0.50688]
[1761234822087,3.39,3886.0,3884.6,0.5]
[1761234822285,2.57384739,3885.3,3884.4,0.50688]
[1761234822690,0.1117,3886.1,3884.4,0.95908]
[1761234822905,0.1117,3886.1,3884.5,0.50688]
[1761234823122,0.1117,3886.1,3885.1,2.57393489]
[1761234823299,2.57334307,3886.0,3885.0,0.50688]
[1761234823502,2.57334754,3886.0,3885.0,2.57399886]
[1761234823811,2.57344015,3885.9,3885.1,0.50688]
[1761234824010,2.57344015,3885.9,3884.9,3.08091065]
[1761234824215,2.57347424,3885.8,3884.9,0.50688]
[1761234824419,2.57347424,3885.8,3884.9,2.06208]
[1761234824592,2.57340552,3886.0,3885.1,0.50688]
[1761234824789,3.5007,3886.1,3885.2,0.2144]
[1761234824988,2.57334741,3886.0,3885.2,0.2144]
[1761234825602,2.57342254,3885.9,3885.2,0.2144]
[1761234825801,2.57347995,3885.8,3885.2,0.2144]
[1761234826032,3.5148,3886.0,3885.4,0.1288]
[1761234826232,2.57397469,3885.1,3884.1,1.5552]
[1761234826406,0.1288,3885.4,3884.7,0.1288]
[1761234826728,0.1117,3886.1,3884.8,4.12928474]
[1761234826729,5.96049052,3885.8,3884.8,4.12928474]
[1761234827046,3.387,3885.8,3884.3,0.5]
[1761234827548,2.57389292,3885.2,3884.3,0.9522]
[1761234828032,2.57394763,3885.1,3884.3,0.9522]
[1761234828232,2.57403896,3885.0,3884.3,0.9522]
[1761234828530,2.57380748,3885.3,3884.3,0.9522]
[1761234828733,2.57342352,3885.9,3884.7,0.50688]
[1761234829031,2.57358787,3885.7,3884.8,1.5552]
[1761234829233,0.001,3886.0,3884.8,1.5552]
[1761234829234,2.57440327,3886.0,3884.9,2.57405614]
[1761234829408,2.57342554,3885.9,3885.0,4.60711048]
[1761234829603,0.001,3886.0,3885.3,0.50688]
[1761234829803,2.57341309,3885.9,3885.3,0.50688]
[1761234830011,2.57341309,3885.9,3885.2,2.06208]
[1761234830233,0.001,3886.0,3885.1,0.2144]
[1761234830432,0.001,3886.0,3885.2,1.5552]
[1761234830607,2.57345961,3885.9,3885.1,1.7696]
[1761234830933,0.001,3886.0,3885.1,2.78829982]
[1761234831130,2.57342721,3885.9,3885.1,2.78829982]
[1761234831494,0.001,3886.0,3885.1,0.2144]
[1761234831699,2.57346879,3885.9,3885.1,1.5552]
[1761234831938,0.001,3886.0,3885.1,1.7696]
[1761234832100,0.001,3886.0,3885.5,2.57361693]
[1761234832435,0.001,3886.0,3885.5,2.0074]
[1761234832732,0.001,3886.0,3885.5,3.02586908]
[1761234832938,0.001,3886.0,3885.6,2.5735883]
[1761234833144,0.0002,3886.0,3885.6,2.5735883]
[1761234833298,0.0002,3886.0,3885.6,0.4522]
[1761234833496,0.0002,3886.0,3885.6,3.02578205]
[1761234834016,0.0002,3886.0,3885.7,0.4522]
[1761234834416,2.57355162,3886.0,3885.2,0.50688]
[1761234834619,0.0002,3886.0,3884.6,2.06208]
[1761234834821,2.57365631,3885.6,3884.9,0.50688]
[1761234835002,2.57365631,3885.6,3884.9,2.06208]
[1761234835202,0.0002,3886.0,3884.9,2.06208]
[1761234835405,2.57365101,3885.6,3884.8,3.08101127]
[1761234835604,2.57365101,3885.6,3884.8,0.50688]
[1761234835931,2.5737024,3885.5,3884.8,0.50688]
[1761234836129,2.57342726,3885.9,3885.1,2.06208]
[1761234836315,0.0002,3886.0,3885.1,2.06208]
[1761234836519,0.0002,3886.0,3885.6,0.1288]
[1761234836832,0.1288,3885.9,3885.4,0.1288]
[1761234837040,2.57355677,3885.7,3885.4,0.1288]
[1761234837233,2.57361041,3885.6,3885.4,0.1288]
[1761234837410,2.57356135,3885.7,3885.4,0.1288]
[1761234838038,2.57361488,3885.6,3885.4,0.1288]
[1761234838239,0.0991,3885.8,3884.8,0.50688]
[1761234838405,2.57378479,3885.4,3885.1,0.1288]
[1761234838606,0.1288,3885.7,3884.5,0.4522]
[1761234838811,0.0991,3885.6,3884.4,2.57439291]
[1761234839020,2.5738158,3885.3,3884.5,2.57432346]
[1761234839222,2.57358379,3885.7,3884.3,2.56208]
[1761234839435,5.95461017,3885.6,3884.9,3.08094589]
[1761234839738,0.0002,3886.0,3884.9,0.97408]
[1761234839739,2.57368041,3885.5,3884.9,0.97408]
[1761234839939,2.57376127,3885.4,3884.7,2.06208]
[1761234840356,2.57376127,3885.4,3884.7,3.08107993]
[1761234840567,3.381,3885.5,3884.5,0.4672]
[1761234840711,0.0993,3886.0,3884.6,0.50688]
[1761234841019,0.0993,3886.0,3884.5,0.4672]
[1761234841020,2.57405128,3885.0,3884.5,0.4672]
[1761234841428,2.57370536,3885.5,3884.6,1.5552]
[1761234841635,5.95343289,3885.9,3884.5,3.04152336]
[1761234841636,2.5740443,3885.0,3884.5,0.4672]
[1761234842009,2.574072,3884.9,3884.5,0.4672]
[1761234842220,2.57426016,3884.7,3884.2,1.5552]
[1761234842520,2.73324,3884.8,3884.0,0.2144]
[1761234842731,0.1591,3884.8,3884.0,0.2144]
[1761234842932,2.57421153,3884.7,3884.0,4.19581021]
[1761234843142,2.57421153,3884.7,3884.0,3.17635167]
[1761234843326,2.57427876,3884.6,3884.1,1.5552]
[1761234843522,2.57433278,3884.6,3884.0,1.62115167]
[1761234843726,0.1591,3884.8,3884.0,3.17635167]
[1761234843934,2.57434767,3884.5,3884.0,0.2144]
[1761234844136,3.377,3884.6,3884.0,0.2144]
[1761234844424,3.377,3884.6,3883.5,0.89992817]
[1761234844724,0.1591,3884.8,3883.6,0.4672]
[1761234844725,3.377,3884.5,3883.6,0.4672]
[1761234844929,3.377,3884.5,3883.5,1.5552]
[1761234845157,2.57458462,3884.2,3883.4,1.5572]
[1761234845335,2.57459999,3884.1,3883.4,3.47698419]
[1761234845534,0.0997,3884.4,3883.4,0.90192817]
[1761234845745,0.0997,3884.4,3883.4,0.002]
[1761234845746,2.57477073,3883.9,3883.4,0.002]
[1761234846058,2.5749053,3883.7,3883.4,0.002]
[1761234846267,2.57481863,3883.8,3883.4,0.002]
[1761234846453,3.376,3883.9,3883.4,0.002]
[1761234846658,0.1591,3884.8,3883.6,0.50688]
[1761234846963,0.1591,3884.8,3883.8,0.50688]
[1761234846964,0.151,3884.7,3883.8,0.50688]
[1761234847171,0.1,3885.4,3883.8,0.50688]
[1761234847172,2.57374479,3885.4,3884.7,0.2163]
[1761234847355,0.1007,3886.0,3884.8,0.4672]
[1761234847356,2.57347897,3885.8,3884.8,0.4672]
[1761234847529,2.57340641,3885.9,3884.8,0.4672]
[1761234847733,2.57370703,3885.5,3884.8,0.4672]
[1761234847933,3.38,3885.6,3884.6,2.06208]
[1761234848235,5.95361777,3885.6,3884.7,1.5552]
[1761234848446,3.38,3885.6,3884.5,0.2163]
[1761234848766,2.57406221,3885.0,3884.2,0.2163]
[1761234848953,2.57413509,3884.8,3884.3,0.1288]
[1761234849157,2.7335322,3884.9,3884.3,0.1288]
[1761234849347,0.1594,3884.9,3884.3,0.1288]
[1761234849542,3.5118,3885.0,3884.3,0.1288]
[1761234849742,0.1288,3884.6,3884.0,2.58592817]
[1761234849942,0.1288,3884.6,3884.1,0.2163]
[1761234850467,2.57433389,3884.5,3884.0,0.1308]
[1761234850668,2.57433389,3884.5,3884.0,0.002]
[1761234850896,2.57441603,3884.4,3884.0,0.002]
[1761234851238,3.381,3884.8,3884.0,0.002]
[1761234851571,2.57438014,3884.5,3884.0,0.002]
[1761234851741,2.57444665,3884.4,3884.0,0.002]
[1761234851936,3.381,3884.8,3884.0,0.002]
[1761234852169,2.574599,3884.1,3884.0,0.002]
[1761234852372,5.953599,3884.1,3884.0,0.002]
[1761234852560,6.053199,3884.1,3884.0,0.002]
[1761234853167,0.69478273,3885.7,3884.0,0.002]
[1761234853474,2.57411488,3884.9,3884.1,0.2163]
[1761234853672,2.57416662,3884.8,3884.1,0.2163]
[1761234853874,2.57426762,3884.6,3884.1,0.2163]
[1761234854039,0.1594,3885.1,3884.0,0.002]
[1761234854040,3.38,3884.7,3884.0,0.002]
[1761234854239,2.57434003,3884.5,3884.0,0.002]
[1761234854437,2.57440016,3884.4,3884.0,0.002]
[1761234854662,3.38,3884.5,3884.0,0.002]
[1761234854861,2.57445242,3884.4,3884.0,0.002]
[1761234855062,2.57440522,3884.4,3884.0,0.002]
[1761234855601,2.57451886,3884.3,3884.0,0.002]
[1761234855804,0.0996,3884.4,3884.0,0.002]
[1761234856001,2.574599,3884.1,3884.0,0.002]
[1761234856475,2.674199,3884.1,3884.0,0.002]
[1761234856800,5.952599,3884.1,3884.0,0.002]
[1761234857508,2.573799,3884.1,3884.0,0.002]
[1761234857690,5.951799,3884.1,3884.0,0.002]
[1761234857896,6.051399,3884.1,3884.0,0.002]
[1761234859073,7.606599,3884.1,3884.0,0.002]
[1761234859268,4.228599,3884.1,3884.0,0.002]
[1761234859598,7.605599,3884.1,3884.0,0.002]
[1761234859798,4.228599,3884.1,3884.0,0.002]
[1761234860107,7.606599,3884.1,3884.0,0.002]
[1761234860772,7.735399,3884.1,3884.0,0.002]
[1761234862670,8.242279,3884.1,3884.0,0.002]
[1761234863311,4.357399,3884.1,3884.0,0.002]
[1761234863604,4.13019678,3883.5,3883.4,1e-08]
[1761234864208,7.60319678,3883.5,3883.4,1e-08]
[1761234864571,7.73199678,3883.5,3883.4,1e-08]
[1761234865007,4.35799678,3883.5,3883.4,1e-08]
[1761234865487,7.73299678,3883.5,3883.4,1e-08]
[1761234866012,4.35799678,3883.5,3883.4,1e-08]
[1761234866213,2.70379678,3883.5,3883.4,1e-08]
[1761234866374,6.08079678,3883.5,3883.4,1e-08]
[1761234867071,6.17979678,3883.5,3883.4,1e-08]
[1761234867697,7.73499678,3883.5,3883.4,1e-08]
[1761234868607,4.22926308,3883.4,3881.3,0.4698]
[1761234868908,2.57610264,3881.9,3881.4,0.4506]
[1761234869309,2.57615517,3881.8,3881.5,0.47986116]
[1761234869472,3.376,3882.0,3881.4,0.4506]
[1761234869473,2.5762792,3881.6,3881.4,0.4506]
[1761234869682,2.57632358,3881.5,3881.4,0.4506]
[1761234870099,2.5762162,3881.7,3881.4,0.4506]
[1761234870414,0.1594,3881.5,3880.6,0.2221]
[1761234870615,2.68730424,3882.5,3880.7,0.4506]
[1761234870616,1.5552,3882.4,3880.7,0.4506]
[1761234870817,2.57626615,3881.6,3880.8,3.08360657]
[1761234871320,2.57625721,3881.6,3881.5,0.2221]
[1761234872821,2.57632954,3881.5,3881.3,0.2221]
[1761234873017,5.49620383,3881.7,3881.3,0.2221]
[1761234873204,2.57625721,3881.6,3881.3,0.2221]
[1761234873441,2.57625721,3881.6,3881.3,0.6727]
[1761234873604,2.57617187,3881.8,3881.3,0.6727]
[1761234873794,2.57620364,3881.7,3881.4,0.4506]
[1761234875417,5.95406968,3881.9,3881.4,0.4506]
[1761234875619,2.57626001,3881.6,3881.4,0.4506]
[1761234875915,2.57621323,3881.7,3881.4,0.4506]
[1761234876318,2.57626686,3881.6,3881.4,0.4506]
[1761234877020,2.57632358,3881.5,3881.4,0.4506]
[1761234877619,3.376,3881.5,3880.8,0.4506]
[1761234877795,3.376,3881.5,3880.7,0.50688]
[1761234877995,0.1594,3881.7,3880.7,0.4506]
[1761234878220,2.57662584,3881.1,3880.7,0.4506]
[1761234878423,2.57645634,3881.3,3880.7,0.4506]
[1761234878592,2.57665977,3881.0,3880.7,0.4506]
[1761234879310,2.70542604,3881.1,3880.7,0.4506]
[1761234879507,2.57678058,3880.9,3880.7,0.4506]
[1761234879717,0.1288,3881.1,3880.8,0.50688]
[1761234880032,0.19,3882.0,3880.9,0.581438]
[1761234880207,2.76605811,3881.9,3881.0,0.4506]
[1761234880406,2.57635445,3881.5,3881.0,0.97262978]
[1761234880608,2.57635445,3881.5,3881.1,0.2221]
[1761234880953,2.57635445,3881.5,3881.1,0.6727]
[1761234881132,2.57639685,3881.4,3881.1,0.6727]
[1761234881306,2.57639685,3881.4,3881.1,0.2221]
[1761234881631,2.57634343,3881.5,3881.2,0.4506]
[1761234882032,2.57626268,3881.6,3881.2,0.4506]
[1761234882717,2.57633097,3881.5,3881.2,0.4506]
[1761234883706,2.5762661,3881.6,3881.2,0.4506]
[1761234883924,3.372,3881.7,3881.2,0.4506]
[1761234884129,2.57630008,3881.6,3881.2,0.4506]
[1761234884332,2.57613303,3881.8,3881.3,0.50688]
[1761234884535,2.57613303,3881.8,3881.4,0.4506]
[1761234885344,2.57607594,3881.9,3881.4,0.4506]
[1761234885514,2.5761308,3881.8,3881.4,0.4506]
[1761234885717,5.94599189,3882.0,3881.4,0.4506]
[1761234885718,2.57607831,3881.9,3881.4,0.4506]
[1761234886114,5.94601551,3882.0,3881.4,0.4506]
[1761234886451,5.94407653,3881.9,3881.4,0.4506]
[1761234886747,2.57606162,3881.9,3881.4,1.2734021]
[1761234886922,2.57578917,3882.4,3881.4,3.84978936]
[1761234887126,0.001,3883.0,3881.6,0.50688]
[1761234887328,2.57583935,3882.3,3881.7,0.17802821]
[1761234887627,2.57583935,3882.3,3881.8,0.4506]
[1761234887628,5.94183935,3882.3,3881.8,0.4506]
[1761234888145,2.57586574,3882.2,3881.8,0.4506]
[1761234888332,3.366,3882.3,3882.2,0.2221]
[1761234888654,2.57636482,3883.0,3881.8,0.4506]
[1761234888655,2.57586609,3882.2,3881.9,0.2221]
[1761234888859,2.57581802,3882.3,3881.9,0.2221]
[1761234889215,2.57581802,3882.3,3882.0,0.4506]
[1761234889616,2.57567555,3882.5,3882.0,0.4506]
[1761234889833,5.94167295,3882.5,3882.0,0.5794]
[1761234890330,0.1288,3882.7,3882.2,0.50688]
[1761234890543,0.001,3883.0,3882.5,0.1288]
[1761234890544,2.57547096,3882.8,3882.5,0.1288]
[1761234890856,2.57540772,3882.9,3882.6,0.4506]
[1761234891149,0.001,3883.0,3882.6,0.4506]
[1761234891354,2.57539467,3882.9,3882.6,0.4506]
[1761234891728,2.57547964,3882.8,3882.6,0.4506]
[1761234891939,0.001,3883.0,3882.6,0.4506]
[1761234892146,0.001,3883.0,3882.7,0.1288]
[1761234892147,2.57634484,3883.0,3882.7,0.1288]
[1761234892326,0.001,3883.0,3882.8,0.4506]
[1761234892523,0.001,3883.0,3882.9,0.1288]
[1761234892753,0.001,3883.0,3882.8,0.1288]
[1761234893124,2.57633965,3883.0,3882.8,0.1288]
[1761234893321,2.57539467,3882.9,3882.8,0.1288]
[1761234893868,2.57541276,3882.9,3882.5,0.5794]
[1761234894167,2.57547573,3882.8,3882.5,0.5794]
[1761234894469,2.57547573,3882.8,3882.6,0.4506]
[1761234894959,2.57637086,3883.0,3882.7,0.1288]
[1761234895422,2.57637086,3883.0,3882.9,0.1288]
[1761234896518,0.001,3883.0,3882.7,0.4506]
[1761234896937,2.575461,3882.8,3882.7,0.4506]
[1761234897136,2.575461,3882.8,3882.5,0.1288]
[1761234897336,2.575461,3882.8,3882.5,0.5794]
[1761234897749,2.575461,3882.8,3882.6,0.4506]
[1761234897959,2.575461,3882.8,3881.9,0.2221]
[1761234897960,3.359,3882.7,3881.9,0.2221]
[1761234898260,2.57599175,3882.0,3881.9,0.2221]
[1761234898843,2.57592906,3882.1,3881.4,0.4483]
[1761234899044,2.57600106,3882.0,3881.4,2.0035]
[1761234899250,2.57600106,3882.0,3881.5,1.36600926]
[1761234899450,2.57606422,3881.9,3881.5,1.36600926]
[1761234899645,2.57606422,3881.9,3881.6,0.4483]
[1761234899859,2.57612686,3881.8,3881.6,0.4483]
[1761234900269,3.358,3882.3,3881.2,0.89992817]
[1761234900472,2.57633619,3881.5,3881.1,4.93032817]
[1761234900778,2.57636788,3881.5,3881.2,0.4483]
[1761234901066,2.57636788,3881.5,3881.2,2.0035]
[1761234901269,2.57585904,3882.2,3881.2,2.0035]
[1761234901270,0.1588,3882.3,3881.3,0.50688]
[1761234901459,2.57588099,3882.2,3881.4,2.57634579]
[1761234901781,2.57601215,3882.0,3881.3,3.53162818]
[1761234901951,2.57594753,3882.1,3881.4,3.02468387]
[1761234902153,2.5562,3883.0,3881.4,3.02468387]
[1761234902154,1.001,3883.0,3881.6,0.50688]
[1761234902453,1.001,3883.0,3882.0,0.50688]
[1761234902454,2.57567707,3882.5,3882.0,0.50688]
[1761234902656,1.001,3883.0,3881.8,0.50688]
[1761234902854,2.57566789,3882.5,3882.0,0.50688]
[1761234903050,3.36,3882.9,3882.0,3.59149915]
[1761234903382,1.001,3883.0,3882.1,3.25097623]
[1761234903383,2.57546464,3882.8,3882.1,3.25097623]
[1761234903539,1.001,3883.0,3882.2,3.08267788]
[1761234903738,2.5754683,3882.8,3882.2,0.95518]
[1761234903969,2.5754683,3882.8,3882.3,0.4483]
[1761234904176,2.57554002,3882.7,3882.3,0.4483]
[1761234904375,2.57540987,3882.9,3882.3,0.77401983]
[1761234904575,2.57539467,3882.9,3882.3,0.77401983]
[1761234904741,2.57546288,3882.8,3882.2,0.50688]
[1761234905072,2.57569715,3882.5,3882.1,3.5858]
[1761234905299,1.001,3883.0,3882.1,3.5858]
[1761234905457,2.57562997,3882.6,3882.1,3.5858]
[1761234905639,2.57539913,3882.9,3882.1,3.5858]
[1761234905640,4.358,3883.0,3882.2,0.4483]
[1761234906351,2.57477664,3882.7,3882.2,0.4483]
[1761234906556,2.57477664,3882.7,3882.2,1.16016597]
[1761234906782,2.57560042,3882.6,3882.2,1.16016597]
[1761234907213,2.57560042,3882.6,3882.3,0.4483]
[1761234907476,2.57546359,3882.8,3882.3,0.4483]
[1761234907646,2.57571686,3882.5,3882.1,3.5858]
[1761234908047,2.57571686,3882.5,3882.2,0.1288]
[1761234908276,0.1288,3882.8,3882.2,0.5771]
[1761234908457,2.57566851,3882.5,3882.2,0.5771]
[1761234909673,2.5756171,3882.6,3882.2,0.5771]
[1761234910353,2.57567074,3882.5,3882.2,0.5771]
[1761234910560,2.57577184,3882.4,3882.2,0.1288]
[1761234910759,2.57577375,3882.4,3882.2,0.1288]
[1761234911158,0.1288,3882.8,3882.2,0.1288]
[1761234911352,2.57566526,3882.5,3882.2,0.1288]
[1761234911550,2.70426167,3882.8,3882.2,0.1288]
[1761234911869,2.57569977,3882.5,3882.2,0.1288]
[1761234912057,0.1288,3882.8,3882.2,0.1288]
[1761234912252,2.5757712,3882.4,3882.2,0.1288]
[1761234912476,2.57568119,3882.5,3882.2,0.1288]
[1761234912775,2.57567318,3882.5,3882.3,0.4483]
[1761234912982,0.1288,3882.8,3882.3,0.4483]
[1761234913190,1.001,3883.0,3882.4,2.57568209]
[1761234913486,1.001,3883.0,3882.9,4.76627467]
[1761234913653,1.001,3883.0,3882.9,9.01720284]
[1761234913980,1.001,3883.0,3882.9,8.56557467]
[1761234914282,1.001,3883.0,3882.9,9.81491947]
[1761234914797,1.001,3883.0,3882.9,11.16726551]
[1761234915586,1.001,3883.0,3882.9,9.94413349]
[1761234916075,1e-08,3883.0,3882.9,9.81533349]
[1761234916379,1e-08,3883.0,3882.9,9.46533349]
[1761234916783,1e-08,3883.0,3882.9,11.28809645]
[1761234917077,0.001,3883.4,3883.3,4.6372094]
[1761234917378,0.001,3883.8,3883.7,4.63694417]
[1761234917565,0.001,3883.8,3883.7,8.43524417]
[1761234918373,0.001,3883.8,3883.7,9.34933037]
[1761234918578,0.001,3883.8,3883.7,9.87464993]
[1761234919591,0.001,3883.8,3883.7,9.87480633]
[1761234919757,0.001,3883.8,3883.7,9.81742395]
[1761234920095,0.001,3883.8,3883.7,1.5552]
[1761234920266,0.001,3883.8,3883.6,3.352]
[1761234921295,0.1,3883.8,3883.3,3.353]
[1761234921609,2.5749479,3883.6,3883.4,1.5552]
[1761234921908,0.1,3883.8,3883.4,1.5552]
[1761234922061,0.001,3883.8,3883.4,1.5552]
[1761234922404,2.57498604,3883.6,3883.3,3.353]
[1761234922606,2.57487416,3883.7,3883.3,3.353]
[1761234923405,0.001,3883.8,3883.4,0.4483]
[1761234923590,2.57486991,3883.7,3883.3,3.353]
[1761234923908,2.57580157,3883.8,3883.3,3.353]
[1761234924204,2.57580157,3883.8,3883.4,1.5552]
[1761234924699,2.57487119,3883.7,3883.4,1.5552]
[1761234925201,2.57487028,3883.7,3883.4,1.5552]
[1761234925960,0.001,3883.8,3883.5,0.50688]
[1761234926170,0.001,3883.8,3883.7,0.1288]
[1761234926911,0.001,3883.8,3883.7,0.63568]
[1761234927118,0.001,3883.8,3883.0,1.1410426]
[1761234927415,0.001,3883.8,3883.3,1.5552]
[1761234927783,0.001,3883.8,3883.4,4.9042]
[1761234927985,0.001,3883.8,3883.5,1.5552]
[1761234928590,0.001,3883.8,3883.5,2.0102]
[1761234928787,0.001,3883.8,3883.5,2.80361989]
[1761234928990,0.001,3883.8,3883.5,1.5552]
[1761234929877,0.0996,3883.7,3883.4,3.349]
[1761234930083,0.0996,3883.7,3881.9,1.83129999]
[1761234930084,2.57499678,3883.5,3883.3,1.5552]
[1761234930596,0.1006,3883.8,3883.3,1.5552]
[1761234930898,2.57419918,3883.5,3883.3,1.5552]
[1761234931066,2.57506308,3883.4,3883.3,1.5552]
[1761234931263,2.57493047,3883.6,3883.3,1.5552]
[1761234931479,2.57580383,3883.8,3883.3,1.5552]
[1761234931679,2.57499145,3883.6,3883.3,1.5552]
[1761234931969,0.001,3883.8,3883.3,1.5552]
[1761234932166,2.57506308,3883.4,3883.2,3.348]
[1761234932370,0.0996,3883.7,3882.7,4.9032]
[1761234932672,0.0996,3883.7,3882.7,3.348]
[1761234932673,2.57546039,3882.9,3882.7,3.348]
[1761234932879,2.57546039,3882.9,3882.3,0.9162426]
[1761234932880,0.1133,3882.8,3882.3,0.002]
[1761234933200,2.57533598,3883.0,3882.4,3.8195]
[1761234933366,2.57533598,3883.0,3882.5,0.0257566]
[1761234933578,3.348,3883.7,3882.4,3.348]
[1761234933780,2.5754324,3882.9,3882.4,3.348]
[1761234933977,2.57548309,3882.8,3882.4,3.348]
[1761234934176,2.57551349,3882.8,3882.4,3.348]
[1761234934410,2.57557581,3882.7,3882.4,3.348]
[1761234934715,2.57546105,3882.8,3882.4,3.348]
[1761234935095,2.57546105,3882.8,3882.3,0.002]
[1761234935293,0.2119,3883.1,3882.3,0.002]
[1761234935812,2.57552905,3882.7,3882.3,0.002]
[1761234936212,2.5754838,3882.8,3882.3,0.002]
[1761234937122,2.7042838,3882.8,3882.4,0.002]
[1761234937338,0.1288,3882.8,3882.4,0.02775726]
[1761234937522,0.1288,3882.8,3882.5,0.0257566]
[1761234937724,0.1288,3883.0,3882.5,2.60141632]
[1761234937929,0.1288,3883.0,3882.5,3.07291632]
[1761234938101,0.2129,3883.8,3882.6,0.4715]
[1761234938432,0.2129,3883.8,3882.7,2.70427669]
[1761234938433,0.1288,3883.3,3882.7,2.70427669]
[1761234938633,2.70394379,3883.3,3882.7,0.1288]
[1761234938829,2.70394379,3883.3,3882.8,3.348]
[1761234939130,0.1288,3883.3,3882.8,5.92339651]
[1761234939298,0.1288,3883.3,3882.9,0.50688]
[1761234939483,2.57505669,3883.5,3883.1,0.1288]
[1761234939683,2.575081,3883.4,3883.1,0.1288]
[1761234940128,0.1288,3883.6,3883.1,0.1288]
[1761234940608,2.57506496,3883.4,3883.1,0.1288]
[1761234941195,2.57519571,3883.2,3882.8,3.4768]
[1761234941390,2.57546364,3882.8,3882.5,1.684]
[1761234941626,0.2427,3882.9,3882.4,3.35]
[1761234941794,2.57555998,3882.7,3882.4,3.35]
[1761234941994,0.3418,3882.9,3882.4,3.35]
[1761234941995,2.8181349,3882.9,3882.4,3.35]
[1761234942210,2.57546867,3882.8,3882.4,0.002]
[1761234942407,0.2427,3882.9,3882.4,0.49925726]
[1761234942408,2.70421813,3882.9,3882.4,0.49925726]
[1761234942615,2.57548119,3882.8,3882.4,0.4735]
[1761234942915,0.1288,3882.9,3882.4,0.002]
[1761234943111,10.2,3884.0,3882.7,0.1288]
[1761234943112,3.349,3883.8,3882.7,0.1288]
[1761234943291,0.1288,3883.3,3882.7,6.0523024]
[1761234943486,0.1288,3883.4,3882.7,6.52380146]
[1761234943692,0.1288,3883.4,3882.8,2.57545944]
[1761234944133,0.1288,3883.4,3882.9,2.57538598]
[1761234944637,0.1288,3883.4,3882.8,1.95003]
[1761234944793,2.70387723,3883.4,3882.8,4.13065101]
[1761234945007,0.1288,3883.4,3882.9,2.5753914]
[1761234945246,0.1288,3883.4,3882.8,4.13064698]
[1761234945610,0.1288,3883.4,3882.8,4.13063741]
[1761234945813,3.4483,3883.8,3883.3,2.80540581]
[1761234945814,0.001,3883.8,3883.3,2.80540581]
[1761234946146,0.001,3883.8,3883.5,0.50688]